[Event "Early-Titled-Tuesday-Blitz-February-13-2024"]
[Site "Chess.com"]
[Date "2024.02.13"]
[Round "1"]
[White "Matibar"]
[Black "TheoSlade"]
[Result "1-0"]
[WhiteElo "2771"]
[BlackElo "2429"]
[TimeControl "180+1"]
[EndTime "8:07:53 PST"]
[Termination "Matibar won on time"]

1. e4 {[%clk 0:03:00.9]} 1... e5 {[%clk 0:02:59.9]} 2. Nf3 {[%clk 0:02:58.9]}
2... Nc6 {[%clk 0:03:00.6]} 3. Bc4 {[%clk 0:02:57.7]} 3... Bc5 {[%clk
0:03:00.5]} 4. d3 {[%clk 0:02:54.5]} 4... Nf6 {[%clk 0:03:01]} 5. a4 {[%clk
0:02:51.3]} 5... O-O {[%clk 0:02:55.9]} 6. Bg5 {[%clk 0:02:45.7]} 6... h6 {[%clk
0:02:54.8]} 7. Bh4 {[%clk 0:02:45.8]} 7... Be7 {[%clk 0:02:54.7]} 8. O-O {[%clk
0:02:38]} 8... d6 {[%clk 0:02:54.7]} 9. a5 {[%clk 0:02:30.7]} 9... a6 {[%clk
0:02:51.1]} 10. Nc3 {[%clk 0:02:19]} 10... Re8 {[%clk 0:02:47.8]} 11. Bxf6
{[%clk 0:02:13]} 11... Bxf6 {[%clk 0:02:47.5]} 12. Nd5 {[%clk 0:02:13.9]} 12...
Be6 {[%clk 0:02:41.7]} 13. c3 {[%clk 0:02:12.9]} 13... Be7 {[%clk 0:02:36]} 14.
Qb3 {[%clk 0:02:02]} 14... Rb8 {[%clk 0:02:31.5]} 15. Ne1 {[%clk 0:01:46.6]}
15... Bf8 {[%clk 0:02:29.1]} 16. Nc2 {[%clk 0:01:46.2]} 16... Ne7 {[%clk
0:02:21.6]} 17. f4 {[%clk 0:01:25.4]} 17... Nxd5 {[%clk 0:02:11.2]} 18. Bxd5
{[%clk 0:01:22.4]} 18... Bxd5 {[%clk 0:02:07.7]} 19. Qxd5 {[%clk 0:01:19.4]}
19... c6 {[%clk 0:02:04.4]} 20. Qb3 {[%clk 0:01:19.1]} 20... exf4 {[%clk
0:01:55.5]} 21. Rxf4 {[%clk 0:01:18.5]} 21... d5 {[%clk 0:01:54.3]} 22. Ne3
{[%clk 0:01:05]} 22... Bd6 {[%clk 0:01:30.1]} 23. Rf3 {[%clk 0:01:04.2]} 23...
dxe4 {[%clk 0:01:25.4]} 24. Qxf7+ {[%clk 0:00:58.9]} 24... Kh8 {[%clk
0:01:24.6]} 25. dxe4 {[%clk 0:00:50.1]} 25... Rxe4 {[%clk 0:00:50.1]} 26. Nf5
{[%clk 0:00:44.8]} 26... Bc5+ {[%clk 0:00:40.3]} 27. Kh1 {[%clk 0:00:44.8]}
27... Qf8 {[%clk 0:00:20.4]} 28. Qg6 {[%clk 0:00:44.4]} 28... Rbe8 {[%clk
0:00:15.1]} 29. Raf1 {[%clk 0:00:44.3]} 29... Re1 {[%clk 0:00:14.6]} 30. b4
{[%clk 0:00:30.9]} 30... Ba7 {[%clk 0:00:12.3]} 31. h4 {[%clk 0:00:27.6]} 31...
Qf6 {[%clk 0:00:12.6]} 32. Qxf6 {[%clk 0:00:26.4]} 32... gxf6 {[%clk 0:00:11.3]}
33. Nxh6 {[%clk 0:00:26.6]} 33... Rxf1+ {[%clk 0:00:11.6]} 34. Rxf1 {[%clk
0:00:26.2]} 34... Kg7 {[%clk 0:00:12.2]} 35. Nf5+ {[%clk 0:00:24]} 35... Kg6
{[%clk 0:00:12.8]} 36. g3 {[%clk 0:00:21.6]} 36... Re5 {[%clk 0:00:10.9]} 37. g4
{[%clk 0:00:20.9]} 37... Re2 {[%clk 0:00:10.6]} 38. Ng3 {[%clk 0:00:16.6]} 38...
Re3 {[%clk 0:00:10.2]} 39. Nh5 {[%clk 0:00:15.6]} 39... Rxc3 {[%clk 0:00:08.2]}
40. Rxf6+ {[%clk 0:00:15.7]} 40... Kh7 {[%clk 0:00:08.9]} 41. Kg2 {[%clk
0:00:12.4]} 41... Rc2+ {[%clk 0:00:08.6]} 42. Kg3 {[%clk 0:00:11.8]} 42... Bb8+
{[%clk 0:00:06.7]} 43. Kf3 {[%clk 0:00:11.9]} 43... Rc3+ {[%clk 0:00:06.3]} 44.
Ke4 {[%clk 0:00:12.1]} 44... Rc4+ {[%clk 0:00:06.9]} 45. Kf5 {[%clk 0:00:12.4]}
45... Rxb4 {[%clk 0:00:06.3]} 46. Rf7+ {[%clk 0:00:12.7]} 46... Kg8 {[%clk
0:00:06.3]} 47. Rd7 {[%clk 0:00:11.4]} 47... Rb5+ {[%clk 0:00:04.2]} 48. Kg6
{[%clk 0:00:10.8]} 48... Kf8 {[%clk 0:00:02.5]} 49. Nf6 {[%clk 0:00:09.2]} 1-0

[Event "Early-Titled-Tuesday-Blitz-February-13-2024"]
[Site "Chess.com"]
[Date "2024.02.13"]
[Round "1"]
[White "kleopl"]
[Black "Msb2"]
[Result "0-1"]
[WhiteElo "2535"]
[BlackElo "3001"]
[TimeControl "180+1"]
[EndTime "8:07:55 PST"]
[Termination "Msb2 won on time"]

1. e4 {[%clk 0:03:00.9]} 1... e6 {[%clk 0:03:00]} 2. d4 {[%clk 0:02:59.7]} 2...
d5 {[%clk 0:03:00.5]} 3. Nd2 {[%clk 0:03:00.4]} 3... c5 {[%clk 0:03:00.5]} 4.
exd5 {[%clk 0:02:59.4]} 4... Qxd5 {[%clk 0:03:01.4]} 5. Ngf3 {[%clk 0:02:59.2]}
5... cxd4 {[%clk 0:03:02]} 6. Bc4 {[%clk 0:02:58.9]} 6... Qd6 {[%clk 0:03:02.8]}
7. Nb3 {[%clk 0:02:59.1]} 7... Nc6 {[%clk 0:03:01.1]} 8. O-O {[%clk 0:02:57.4]}
8... Nf6 {[%clk 0:03:01.2]} 9. Nbxd4 {[%clk 0:02:57]} 9... Nxd4 {[%clk
0:03:02.1]} 10. Qxd4 {[%clk 0:02:53.1]} 10... Qxd4 {[%clk 0:03:01.1]} 11. Nxd4
{[%clk 0:02:54]} 11... Bd7 {[%clk 0:03:02]} 12. c3 {[%clk 0:02:50.7]} 12... Rc8
{[%clk 0:02:58.4]} 13. Be2 {[%clk 0:02:49.5]} 13... Bc5 {[%clk 0:02:59.1]} 14.
Nb3 {[%clk 0:02:48]} 14... Bb6 {[%clk 0:02:59.5]} 15. Bf3 {[%clk 0:02:47.9]}
15... Bc6 {[%clk 0:02:59.3]} 16. Bxc6+ {[%clk 0:02:45.3]} 16... Rxc6 {[%clk
0:03:00.2]} 17. Be3 {[%clk 0:02:24]} 17... Bxe3 {[%clk 0:02:57.1]} 18. fxe3
{[%clk 0:02:24.9]} 18... Ke7 {[%clk 0:02:54.4]} 19. Rad1 {[%clk 0:02:24.1]}
19... Rcc8 {[%clk 0:02:51.5]} 20. Kf2 {[%clk 0:02:17.9]} 20... Rhd8 {[%clk
0:02:47.9]} 21. Ke2 {[%clk 0:02:16.7]} 21... Ng4 {[%clk 0:02:43.4]} 22. h3
{[%clk 0:02:13.1]} 22... Ne5 {[%clk 0:02:42.5]} 23. Nd4 {[%clk 0:01:57.2]} 23...
a6 {[%clk 0:02:36.6]} 24. Nf3 {[%clk 0:01:51.7]} 24... Nc4 {[%clk 0:02:34.3]}
25. b3 {[%clk 0:01:51]} 25... Nd6 {[%clk 0:02:29.5]} 26. c4 {[%clk 0:01:48.1]}
26... b5 {[%clk 0:02:30.2]} 27. cxb5 {[%clk 0:01:47.5]} 27... Nxb5 {[%clk
0:02:31.1]} 28. Rxd8 {[%clk 0:01:38]} 28... Rxd8 {[%clk 0:02:22.2]} 29. Rc1
{[%clk 0:01:36.8]} 29... f6 {[%clk 0:01:58.5]} 30. a4 {[%clk 0:01:33.6]} 30...
Nd6 {[%clk 0:01:57.8]} 31. Nd4 {[%clk 0:01:30.9]} 31... Kd7 {[%clk 0:01:54.6]}
32. b4 {[%clk 0:01:22.1]} 32... e5 {[%clk 0:01:52.2]} 33. Nb3 {[%clk 0:01:17.1]}
33... Ra8 {[%clk 0:01:45.3]} 34. Nc5+ {[%clk 0:01:15.4]} 34... Ke7 {[%clk
0:01:45.7]} 35. Rd1 {[%clk 0:01:09.1]} 35... a5 {[%clk 0:01:30.5]} 36. b5 {[%clk
0:01:05.8]} 36... Rc8 {[%clk 0:01:31.1]} 37. Rd5 {[%clk 0:00:59.7]} 37... Nc4
{[%clk 0:01:24.5]} 38. Nb7 {[%clk 0:00:35.5]} 38... Nb6 {[%clk 0:01:20.3]} 39.
Rd2 {[%clk 0:00:34.8]} 39... Nxa4 {[%clk 0:01:18.3]} 40. Nxa5 {[%clk 0:00:34.8]}
40... Nc3+ {[%clk 0:01:18.5]} 41. Kf3 {[%clk 0:00:34.4]} 41... Nxb5 {[%clk
0:01:19.4]} 42. Nb3 {[%clk 0:00:33.2]} 42... Rc3 {[%clk 0:01:16.7]} 43. Rb2
{[%clk 0:00:24.1]} 43... Nd6 {[%clk 0:01:14.6]} 44. Nd2 {[%clk 0:00:22]} 44...
Nf5 {[%clk 0:01:11.7]} 45. Rb7+ {[%clk 0:00:20.5]} 45... Kf8 {[%clk 0:01:12.2]}
46. Nf1 {[%clk 0:00:20]} 46... h5 {[%clk 0:01:08.3]} 47. g4 {[%clk 0:00:19.1]}
47... hxg4+ {[%clk 0:01:06.8]} 48. hxg4 {[%clk 0:00:20]} 48... Nd6 {[%clk
0:01:07]} 49. Rd7 {[%clk 0:00:19.6]} 49... Nf7 {[%clk 0:01:07.4]} 50. Ng3 {[%clk
0:00:18.3]} 50... Ng5+ {[%clk 0:01:07.5]} 51. Kf2 {[%clk 0:00:18.4]} 51... g6
{[%clk 0:01:05.5]} 52. Ra7 {[%clk 0:00:16.9]} 52... Rc2+ {[%clk 0:01:05.1]} 53.
Kf1 {[%clk 0:00:15.9]} 53... Rc4 {[%clk 0:01:02.3]} 54. Ra6 {[%clk 0:00:12.5]}
54... Rxg4 {[%clk 0:01:01.6]} 55. Ne2 {[%clk 0:00:08.8]} 55... Ne4 {[%clk
0:00:59.8]} 56. Rb6 {[%clk 0:00:06.2]} 56... Kg7 {[%clk 0:00:59]} 57. Ra6 {[%clk
0:00:05.5]} 57... g5 {[%clk 0:00:59.1]} 58. Ra8 {[%clk 0:00:04.3]} 58... Rh4
{[%clk 0:00:59.2]} 59. Kg2 {[%clk 0:00:03.7]} 59... g4 {[%clk 0:00:58.9]} 60.
Ng3 {[%clk 0:00:03.3]} 60... Nxg3 {[%clk 0:00:57.4]} 61. Kxg3 {[%clk 0:00:04.2]}
61... Rh3+ {[%clk 0:00:58.3]} 62. Kxg4 {[%clk 0:00:03.4]} 62... Rxe3 {[%clk
0:00:58.6]} 63. Kf5 {[%clk 0:00:03.5]} 63... Rf3+ {[%clk 0:00:59.1]} 64. Ke6
{[%clk 0:00:03.6]} 64... e4 {[%clk 0:00:58.1]} 65. Ra4 {[%clk 0:00:01.5]} 65...
f5 {[%clk 0:00:58.5]} 66. Ke5 {[%clk 0:00:01.8]} 66... e3 {[%clk 0:00:58.9]} 0-1

[Event "Early-Titled-Tuesday-Blitz-February-13-2024"]
[Site "Chess.com"]
[Date "2024.02.13"]
[Round "1"]
[White "Austen48"]
[Black "Crazy_girl99"]
[Result "0-1"]
[WhiteElo "2219"]
[BlackElo "2602"]
[TimeControl "180+1"]
[EndTime "8:07:55 PST"]
[Termination "Crazy_girl99 won by resignation"]

1. d4 {[%clk 0:02:59.4]} 1... Nf6 {[%clk 0:02:59.7]} 2. c4 {[%clk 0:02:58]} 2...
e6 {[%clk 0:02:59.8]} 3. Nc3 {[%clk 0:02:58]} 3... Bb4 {[%clk 0:02:58.8]} 4. Qc2
{[%clk 0:02:58.1]} 4... d5 {[%clk 0:02:58.8]} 5. Nf3 {[%clk 0:02:41.8]} 5... O-O
{[%clk 0:02:56.8]} 6. Bg5 {[%clk 0:02:36.7]} 6... h6 {[%clk 0:02:51.6]} 7. Bh4
{[%clk 0:02:35.9]} 7... Nbd7 {[%clk 0:02:51]} 8. e3 {[%clk 0:02:34.8]} 8... c5
{[%clk 0:02:44.5]} 9. Be2 {[%clk 0:02:21]} 9... dxc4 {[%clk 0:02:41.3]} 10. Bxc4
{[%clk 0:02:14.1]} 10... cxd4 {[%clk 0:02:40.6]} 11. exd4 {[%clk 0:02:12.8]}
11... Nb6 {[%clk 0:02:35.1]} 12. Bd3 {[%clk 0:02:12.4]} 12... Nbd5 {[%clk
0:02:30.3]} 13. O-O {[%clk 0:02:09.7]} 13... Be7 {[%clk 0:02:23]} 14. Rad1
{[%clk 0:01:56.4]} 14... Bd7 {[%clk 0:02:15.5]} 15. a3 {[%clk 0:01:55.3]} 15...
Rc8 {[%clk 0:02:14.2]} 16. Qd2 {[%clk 0:01:48.6]} 16... Nxc3 {[%clk 0:01:48]}
17. bxc3 {[%clk 0:01:48.2]} 17... Qa5 {[%clk 0:01:39.9]} 18. Ne5 {[%clk
0:01:34]} 18... Ba4 {[%clk 0:01:34.6]} 19. Rb1 {[%clk 0:01:23.5]} 19... b6
{[%clk 0:01:28]} 20. Rb4 {[%clk 0:01:04.9]} 20... Bxb4 {[%clk 0:01:02.5]} 21.
axb4 {[%clk 0:00:52]} 21... Qd5 {[%clk 0:00:52.3]} 22. Bxf6 {[%clk 0:00:50.1]}
22... Bc6 {[%clk 0:00:19.2]} 23. Nxc6 {[%clk 0:00:48]} 23... Qxc6 {[%clk
0:00:18.6]} 24. Be5 {[%clk 0:00:46]} 24... Qxc3 {[%clk 0:00:18.8]} 25. Qe3
{[%clk 0:00:42.9]} 25... Rfd8 {[%clk 0:00:16.2]} 26. Qg3 {[%clk 0:00:40]} 26...
g6 {[%clk 0:00:13.2]} 27. h4 {[%clk 0:00:39.6]} 27... h5 {[%clk 0:00:12.4]} 28.
Bf6 {[%clk 0:00:35.7]} 28... Rd5 {[%clk 0:00:11.8]} 29. Rd1 {[%clk 0:00:33.2]}
29... a5 {[%clk 0:00:11.4]} 30. Qf4 {[%clk 0:00:26.7]} 30... Qxb4 {[%clk
0:00:08.4]} 31. Bxg6 {[%clk 0:00:22.5]} 31... fxg6 {[%clk 0:00:04.1]} 32. Qh6
{[%clk 0:00:22]} 32... Rc7 {[%clk 0:00:04.5]} 33. Qxg6+ {[%clk 0:00:21.3]} 33...
Kf8 {[%clk 0:00:04.9]} 34. Qh6+ {[%clk 0:00:17.6]} 34... Ke8 {[%clk 0:00:04.6]}
35. Qh8+ {[%clk 0:00:16.5]} 35... Qf8 {[%clk 0:00:04.7]} 36. Qxh5+ {[%clk
0:00:15.6]} 36... Qf7 {[%clk 0:00:05]} 37. Qxf7+ {[%clk 0:00:14.2]} 37... Kxf7
{[%clk 0:00:05.2]} 38. Be5 {[%clk 0:00:14.9]} 38... Rc4 {[%clk 0:00:05.2]} 39.
Rb1 {[%clk 0:00:14.4]} 39... b5 {[%clk 0:00:05.6]} 40. h5 {[%clk 0:00:12.9]}
40... a4 {[%clk 0:00:06]} 41. g4 {[%clk 0:00:12.4]} 41... a3 {[%clk 0:00:06]}
42. Ra1 {[%clk 0:00:11.3]} 42... b4 {[%clk 0:00:04.9]} 43. g5 {[%clk 0:00:11.2]}
43... Rxe5 {[%clk 0:00:04.2]} 44. dxe5 {[%clk 0:00:10.6]} 44... Rg4+ {[%clk
0:00:04.9]} 45. Kf1 {[%clk 0:00:10.4]} 45... Rxg5 {[%clk 0:00:05.7]} 46. Rb1
{[%clk 0:00:10.7]} 46... a2 {[%clk 0:00:04.7]} 47. Rxb4 {[%clk 0:00:09.2]} 47...
a1=Q+ {[%clk 0:00:05]} 48. Ke2 {[%clk 0:00:09.9]} 48... Qxe5+ {[%clk 0:00:05.4]}
49. Kd3 {[%clk 0:00:09.8]} 49... Rxh5 {[%clk 0:00:05.7]} 50. Rb7+ {[%clk
0:00:08.3]} 50... Kf6 {[%clk 0:00:06]} 0-1

[Event "Early-Titled-Tuesday-Blitz-February-13-2024"]
[Site "Chess.com"]
[Date "2024.02.13"]
[Round "1"]
[White "FLYD"]
[Black "Leebit02"]
[Result "0-1"]
[WhiteElo "1964"]
[BlackElo "2559"]
[TimeControl "180+1"]
[EndTime "8:07:55 PST"]
[Termination "Leebit02 won on time"]

1. e4 {[%clk 0:02:59]} 1... c5 {[%clk 0:03:00.1]} 2. Nf3 {[%clk 0:02:58.7]} 2...
Nc6 {[%clk 0:03:00.2]} 3. Bb5 {[%clk 0:02:58.6]} 3... g6 {[%clk 0:03:00.1]} 4.
O-O {[%clk 0:02:58.6]} 4... Bg7 {[%clk 0:03:00.4]} 5. Re1 {[%clk 0:02:58.8]}
5... Nf6 {[%clk 0:02:56.9]} 6. c3 {[%clk 0:02:58.8]} 6... O-O {[%clk 0:02:56.2]}
7. h3 {[%clk 0:02:58.8]} 7... e5 {[%clk 0:02:49.9]} 8. d4 {[%clk 0:02:57.1]}
8... cxd4 {[%clk 0:02:39.7]} 9. cxd4 {[%clk 0:02:51.9]} 9... exd4 {[%clk
0:02:36.9]} 10. e5 {[%clk 0:02:51.9]} 10... Ne8 {[%clk 0:02:20.8]} 11. Bg5
{[%clk 0:02:47]} 11... Qc7 {[%clk 0:02:19.6]} 12. Nbd2 {[%clk 0:02:32.2]} 12...
h6 {[%clk 0:02:17]} 13. Bf4 {[%clk 0:02:20.6]} 13... Qb6 {[%clk 0:02:16.8]} 14.
Bc4 {[%clk 0:02:12.6]} 14... Nc7 {[%clk 0:02:07.8]} 15. Ne4 {[%clk 0:02:00.3]}
15... d5 {[%clk 0:01:34.6]} 16. exd6 {[%clk 0:01:47.9]} 16... Ne6 {[%clk
0:01:35]} 17. Bg3 {[%clk 0:01:42.2]} 17... Bd7 {[%clk 0:01:27.4]} 18. Rb1 {[%clk
0:01:05.7]} 18... Rac8 {[%clk 0:01:25.1]} 19. Bb3 {[%clk 0:00:49.5]} 19... Na5
{[%clk 0:01:23]} 20. Ne5 {[%clk 0:00:38.8]} 20... Rcd8 {[%clk 0:01:01.1]} 21.
Nxd7 {[%clk 0:00:18]} 21... Rxd7 {[%clk 0:01:01.4]} 22. Bxe6 {[%clk 0:00:18.7]}
22... fxe6 {[%clk 0:01:01.4]} 23. Qg4 {[%clk 0:00:19.5]} 23... Kh7 {[%clk
0:00:28.8]} 24. Qxe6 {[%clk 0:00:19.3]} 24... Rdf7 {[%clk 0:00:22.1]} 25. h4
{[%clk 0:00:19.3]} 25... Nc6 {[%clk 0:00:21.6]} 26. h5 {[%clk 0:00:19.2]} 26...
gxh5 {[%clk 0:00:21.3]} 27. d7 {[%clk 0:00:19.1]} 27... Nd8 {[%clk 0:00:21]} 28.
Qxb6 {[%clk 0:00:18.8]} 28... axb6 {[%clk 0:00:21.7]} 29. Bd6 {[%clk 0:00:07.4]}
29... Rg8 {[%clk 0:00:20.1]} 30. Rbd1 {[%clk 0:00:04.7]} 30... Rxd7 {[%clk
0:00:20.5]} 31. Bf4 {[%clk 0:00:04.9]} 31... Nc6 {[%clk 0:00:20.3]} 32. Nd2
{[%clk 0:00:03.7]} 32... Rf8 {[%clk 0:00:18]} 33. Bg3 {[%clk 0:00:03.5]} 33...
Rff7 {[%clk 0:00:17.6]} 34. Nc4 {[%clk 0:00:03.3]} 34... b5 {[%clk 0:00:15.6]}
35. Nd6 {[%clk 0:00:03.7]} 35... Rf6 {[%clk 0:00:15.5]} 36. Nxb5 {[%clk
0:00:02.4]} 36... Rf5 {[%clk 0:00:15.5]} 37. Nd6 {[%clk 0:00:02.3]} 37... Rd5
{[%clk 0:00:16.2]} 38. Ne4 {[%clk 0:00:01.2]} 38... d3 {[%clk 0:00:16.5]} 39.
Nc3 {[%clk 0:00:01.5]} 39... Rd4 {[%clk 0:00:15.8]} 40. Nb5 {[%clk 0:00:01.6]}
40... Rb4 {[%clk 0:00:16.1]} 41. Nc7 {[%clk 0:00:01.7]} 41... Rxb2 {[%clk
0:00:15.9]} 42. Ne6 {[%clk 0:00:02.2]} 42... d2 {[%clk 0:00:16.2]} 43. Re2
{[%clk 0:00:01.9]} 43... Bc3 {[%clk 0:00:16.9]} 44. Nf4 {[%clk 0:00:01.8]} 44...
Nd4 {[%clk 0:00:16.7]} 45. Re4 {[%clk 0:00:01.9]} 45... Rc2 {[%clk 0:00:16.3]}
46. Nd3 {[%clk 0:00:02.2]} 46... Nc6 {[%clk 0:00:15.1]} 47. Nf4 {[%clk
0:00:01.3]} 47... Rc1 {[%clk 0:00:15.4]} 48. Rde1 {[%clk 0:00:01.2]} 48...
dxe1=Q+ {[%clk 0:00:15.5]} 0-1

[Event "Early-Titled-Tuesday-Blitz-February-13-2024"]
[Site "Chess.com"]
[Date "2024.02.13"]
[Round "1"]
[White "Titus369"]
[Black "kidagent"]
[Result "1-0"]
[WhiteElo "2660"]
[BlackElo "2330"]
[TimeControl "180+1"]
[EndTime "8:07:58 PST"]
[Termination "Titus369 won by checkmate"]

1. e4 {[%clk 0:03:00.9]} 1... c6 {[%clk 0:02:59.7]} 2. d4 {[%clk 0:02:59.9]}
2... d5 {[%clk 0:03:00.4]} 3. Nd2 {[%clk 0:03:00]} 3... dxe4 {[%clk 0:02:59.4]}
4. Nxe4 {[%clk 0:03:00.9]} 4... Bf5 {[%clk 0:02:58.3]} 5. Ng3 {[%clk 0:03:01]}
5... Bg6 {[%clk 0:02:58.3]} 6. Nh3 {[%clk 0:03:00]} 6... e6 {[%clk 0:02:31.2]}
7. Nf4 {[%clk 0:02:57.3]} 7... Nd7 {[%clk 0:02:30.7]} 8. h4 {[%clk 0:02:52.5]}
8... h5 {[%clk 0:01:42.8]} 9. Nxg6 {[%clk 0:02:41.8]} 9... fxg6 {[%clk
0:01:42.7]} 10. Bd3 {[%clk 0:02:42.1]} 10... Qf6 {[%clk 0:01:36.5]} 11. Bg5
{[%clk 0:02:37.2]} 11... Qf7 {[%clk 0:01:35.5]} 12. Qe2 {[%clk 0:02:26.5]} 12...
Ne7 {[%clk 0:01:33.1]} 13. Bc4 {[%clk 0:02:17.6]} 13... Nd5 {[%clk 0:01:28.6]}
14. O-O-O {[%clk 0:02:14.7]} 14... Be7 {[%clk 0:01:25.3]} 15. Ne4 {[%clk
0:02:07]} 15... O-O-O {[%clk 0:01:20.5]} 16. Kb1 {[%clk 0:01:59.3]} 16... Rhf8
{[%clk 0:01:15.4]} 17. f3 {[%clk 0:01:54.3]} 17... N7b6 {[%clk 0:01:15.2]} 18.
Bb3 {[%clk 0:01:53.1]} 18... Rfe8 {[%clk 0:01:11.2]} 19. c4 {[%clk 0:01:52.4]}
19... Nf4 {[%clk 0:01:09.1]} 20. Bxf4 {[%clk 0:01:47.9]} 20... Qxf4 {[%clk
0:01:10]} 21. g3 {[%clk 0:01:47.7]} 21... Qf7 {[%clk 0:01:06.2]} 22. a4 {[%clk
0:01:43.1]} 22... Bf6 {[%clk 0:01:04.3]} 23. c5 {[%clk 0:01:42.2]} 23... Nd5
{[%clk 0:01:04]} 24. Nd6+ {[%clk 0:01:41.1]} 24... Rxd6 {[%clk 0:01:03.2]} 25.
cxd6 {[%clk 0:01:42]} 25... Qd7 {[%clk 0:01:02.3]} 26. Bxd5 {[%clk 0:01:38.4]}
26... exd5 {[%clk 0:01:00.7]} 27. Qd3 {[%clk 0:01:37.7]} 27... Qxd6 {[%clk
0:00:58.9]} 28. Qxg6 {[%clk 0:01:36.5]} 28... Rf8 {[%clk 0:00:51.3]} 29. Rhe1
{[%clk 0:01:33.8]} 29... Qb4 {[%clk 0:00:50.8]} 30. Re8+ {[%clk 0:01:32.6]}
30... Rxe8 {[%clk 0:00:47.9]} 31. Qxe8+ {[%clk 0:01:33.5]} 31... Kc7 {[%clk
0:00:48.4]} 32. Qe3 {[%clk 0:01:20.9]} 32... Qxa4 {[%clk 0:00:47.9]} 33. Rd3
{[%clk 0:01:18.4]} 33... Qc4 {[%clk 0:00:44.5]} 34. b3 {[%clk 0:01:11.8]} 34...
Qb4 {[%clk 0:00:43]} 35. Qf4+ {[%clk 0:01:11]} 35... Kb6 {[%clk 0:00:42.5]} 36.
Qd2 {[%clk 0:01:09.8]} 36... Qb5 {[%clk 0:00:41.9]} 37. Kc2 {[%clk 0:01:01.4]}
37... a5 {[%clk 0:00:41.8]} 38. Qc3 {[%clk 0:00:54.9]} 38... c5 {[%clk
0:00:37.3]} 39. Qxc5+ {[%clk 0:00:50.2]} 39... Qxc5+ {[%clk 0:00:36.9]} 40.
dxc5+ {[%clk 0:00:51.1]} 40... Kxc5 {[%clk 0:00:37.4]} 41. Re3 {[%clk
0:00:51.6]} 41... b5 {[%clk 0:00:34.1]} 42. Re8 {[%clk 0:00:51.1]} 42... a4
{[%clk 0:00:34]} 43. bxa4 {[%clk 0:00:50.7]} 43... bxa4 {[%clk 0:00:34.8]} 44.
Kd3 {[%clk 0:00:49.8]} 44... a3 {[%clk 0:00:34.1]} 45. Ra8 {[%clk 0:00:47.3]}
45... Bb2 {[%clk 0:00:33.3]} 46. g4 {[%clk 0:00:45.7]} 46... hxg4 {[%clk
0:00:32.7]} 47. fxg4 {[%clk 0:00:46.6]} 47... Kd6 {[%clk 0:00:32.7]} 48. g5
{[%clk 0:00:40.1]} 48... Ke5 {[%clk 0:00:31.2]} 49. h5 {[%clk 0:00:35.6]} 49...
Kf5 {[%clk 0:00:31.4]} 50. h6 {[%clk 0:00:36.2]} 50... gxh6 {[%clk 0:00:30.2]}
51. gxh6 {[%clk 0:00:37.1]} 51... Kg6 {[%clk 0:00:30.3]} 52. Ra6+ {[%clk
0:00:37.6]} 52... Kh7 {[%clk 0:00:30.1]} 53. Kc2 {[%clk 0:00:36.2]} 53... d4
{[%clk 0:00:27.2]} 54. Kd3 {[%clk 0:00:33.7]} 54... Kh8 {[%clk 0:00:24.6]} 55.
Ke4 {[%clk 0:00:32.9]} 55... Kh7 {[%clk 0:00:24.7]} 56. Kd3 {[%clk 0:00:28.7]}
56... Kh8 {[%clk 0:00:24.7]} 57. Kc2 {[%clk 0:00:28.4]} 57... Kh7 {[%clk
0:00:24.1]} 58. Kd2 {[%clk 0:00:28.9]} 58... Kh8 {[%clk 0:00:24.3]} 59. Kd3
{[%clk 0:00:29.5]} 59... Kh7 {[%clk 0:00:24.7]} 60. Ke4 {[%clk 0:00:29.8]} 60...
Kh8 {[%clk 0:00:24.9]} 61. Kf5 {[%clk 0:00:21.2]} 61... d3 {[%clk 0:00:22.9]}
62. Kg6 {[%clk 0:00:20.1]} 62... Kg8 {[%clk 0:00:17.8]} 63. Ra8# {[%clk
0:00:19.6]} 1-0

[Event "Early-Titled-Tuesday-Blitz-February-13-2024"]
[Site "Chess.com"]
[Date "2024.02.13"]
[Round "1"]
[White "MikeSailer"]
[Black "JeFumeDesClopes"]
[Result "0-1"]
[WhiteElo "2169"]
[BlackElo "2586"]
[TimeControl "180+1"]
[EndTime "8:07:58 PST"]
[Termination "JeFumeDesClopes won by resignation"]

1. d4 {[%clk 0:02:59.5]} 1... Nf6 {[%clk 0:02:58.3]} 2. Nf3 {[%clk 0:02:59.3]}
2... e6 {[%clk 0:02:56.8]} 3. Bf4 {[%clk 0:02:59.7]} 3... b6 {[%clk 0:02:49.2]}
4. e3 {[%clk 0:02:58.8]} 4... Bb7 {[%clk 0:02:49.7]} 5. Bd3 {[%clk 0:02:58.1]}
5... Bd6 {[%clk 0:02:49.7]} 6. Bg5 {[%clk 0:02:43.6]} 6... h6 {[%clk 0:02:45.9]}
7. Bh4 {[%clk 0:02:43.1]} 7... c5 {[%clk 0:02:40.5]} 8. Nbd2 {[%clk 0:02:33.4]}
8... cxd4 {[%clk 0:02:31.2]} 9. exd4 {[%clk 0:02:32.7]} 9... Nc6 {[%clk
0:02:30.3]} 10. c3 {[%clk 0:02:29.1]} 10... Be7 {[%clk 0:02:26.2]} 11. O-O
{[%clk 0:02:27.6]} 11... O-O {[%clk 0:02:26.3]} 12. Re1 {[%clk 0:02:27.1]} 12...
d6 {[%clk 0:02:26.7]} 13. a4 {[%clk 0:02:25.1]} 13... a6 {[%clk 0:02:26.8]} 14.
Nc4 {[%clk 0:02:09]} 14... Nd5 {[%clk 0:02:21.8]} 15. Bg3 {[%clk 0:02:03.7]}
15... b5 {[%clk 0:02:19.1]} 16. Ne3 {[%clk 0:01:51.9]} 16... Nxe3 {[%clk
0:01:58.5]} 17. fxe3 {[%clk 0:01:48.6]} 17... Qb6 {[%clk 0:01:52.3]} 18. axb5
{[%clk 0:01:27.4]} 18... axb5 {[%clk 0:01:52]} 19. Qb3 {[%clk 0:01:27.7]} 19...
b4 {[%clk 0:01:25.1]} 20. c4 {[%clk 0:01:07.6]} 20... Na5 {[%clk 0:01:11]} 21.
Qc2 {[%clk 0:01:07.3]} 21... b3 {[%clk 0:01:04.5]} 22. Qc3 {[%clk 0:01:05.9]}
22... Rfc8 {[%clk 0:01:04.4]} 23. Ra4 {[%clk 0:00:53.7]} 23... Nc6 {[%clk
0:00:43]} 24. Rea1 {[%clk 0:00:50.1]} 24... Rxa4 {[%clk 0:00:42.9]} 25. Rxa4
{[%clk 0:00:49.8]} 25... Ra8 {[%clk 0:00:43.6]} 26. Rxa8+ {[%clk 0:00:48.5]}
26... Bxa8 {[%clk 0:00:44.3]} 27. Nd2 {[%clk 0:00:41.8]} 27... Na5 {[%clk
0:00:44.5]} 28. Bf2 {[%clk 0:00:33.7]} 28... Bc6 {[%clk 0:00:33.1]} 29. e4
{[%clk 0:00:23]} 29... d5 {[%clk 0:00:16]} 30. c5 {[%clk 0:00:22.8]} 30... Qa7
{[%clk 0:00:14.7]} 31. e5 {[%clk 0:00:23.3]} 31... Bg5 {[%clk 0:00:14.1]} 32.
Nxb3 {[%clk 0:00:21.1]} 32... Nxb3 {[%clk 0:00:14.2]} 33. Qxb3 {[%clk
0:00:20.6]} 33... Qa1+ {[%clk 0:00:14.9]} 34. Bf1 {[%clk 0:00:20.9]} 34... Qc1
{[%clk 0:00:13.5]} 35. g3 {[%clk 0:00:18.4]} 35... h5 {[%clk 0:00:12.6]} 36. Kg2
{[%clk 0:00:18.5]} 36... g6 {[%clk 0:00:10.5]} 37. Qc3 {[%clk 0:00:18.1]} 37...
Qxc3 {[%clk 0:00:10]} 38. bxc3 {[%clk 0:00:18.3]} 38... Bd2 {[%clk 0:00:10.5]}
39. c4 {[%clk 0:00:18.4]} 39... dxc4+ {[%clk 0:00:11.4]} 40. Kg1 {[%clk
0:00:15.7]} 40... Bd5 {[%clk 0:00:11.9]} 41. g4 {[%clk 0:00:13.7]} 41... hxg4
{[%clk 0:00:11.3]} 42. c6 {[%clk 0:00:13.6]} 42... Ba5 {[%clk 0:00:10.1]} 43.
Be1 {[%clk 0:00:12.7]} 43... Bxe1 {[%clk 0:00:09.1]} 44. c7 {[%clk 0:00:12.9]}
44... Bb7 {[%clk 0:00:09.6]} 45. Bxc4 {[%clk 0:00:13.4]} 45... Bc3 {[%clk
0:00:09.5]} 46. d5 {[%clk 0:00:12.9]} 46... exd5 {[%clk 0:00:09.6]} 47. Bxd5
{[%clk 0:00:13.3]} 47... Bc8 {[%clk 0:00:10.2]} 48. e6 {[%clk 0:00:13]} 48...
fxe6 {[%clk 0:00:10.6]} 49. Be4 {[%clk 0:00:13]} 49... Kf7 {[%clk 0:00:10.4]}
50. Kf2 {[%clk 0:00:13.6]} 50... Be5 {[%clk 0:00:10.8]} 51. h3 {[%clk
0:00:13.2]} 51... gxh3 {[%clk 0:00:10.9]} 0-1